[Event "*** Titled Tuesday Blitz"]
[Site "Chess.com"]
[Date "2021.04.20"]
[Round "6"]
[White "TimKett"]
[Black "Rondo_Capriccioso"]
[Result "1-0"]
[WhiteElo "2255"]
[BlackElo "2410"]
[TimeControl "180+1"]
[EndTime "11:04:35 PDT"]
[Termination "TimKett won by resignation"]

1. e4 {[%clk 0:02:56.2]} 1... e5 {[%clk 0:02:47]} 2. f4 {[%clk 0:02:55.2]} 2...
d5 {[%clk 0:02:43.2]} 3. exd5 {[%clk 0:02:54.6]} 3... e4 {[%clk 0:02:43.1]} 4.
d3 {[%clk 0:02:54.2]} 4... Qxd5 {[%clk 0:02:39.7]} 5. Nc3 {[%clk 0:02:50.8]}
5... Bb4 {[%clk 0:02:40.1]} 6. Bd2 {[%clk 0:02:35]} 6... Bxc3 {[%clk 0:02:40.4]}
7. Bxc3 {[%clk 0:02:32.3]} 7... Nf6 {[%clk 0:02:33.1]} 8. dxe4 {[%clk
0:02:29.1]} 8... Qxe4+ {[%clk 0:02:32.2]} 9. Qe2 {[%clk 0:02:26.6]} 9... Bf5
{[%clk 0:02:23.4]} 10. O-O-O {[%clk 0:02:15.3]} 10... O-O {[%clk 0:02:14.4]} 11.
Bxf6 {[%clk 0:02:12.4]} 11... gxf6 {[%clk 0:02:14.4]} 12. Qxe4 {[%clk
0:01:59.2]} 12... Bxe4 {[%clk 0:02:15.3]} 13. Nf3 {[%clk 0:01:59.3]} 13... Nc6
{[%clk 0:02:04.3]} 14. Bd3 {[%clk 0:01:57.8]} 14... Rfe8 {[%clk 0:02:02.1]} 15.
Rhe1 {[%clk 0:01:56.3]} 15... Bxf3 {[%clk 0:01:58.4]} 16. gxf3 {[%clk
0:01:55.7]} 16... Rad8 {[%clk 0:01:49.8]} 17. Rxe8+ {[%clk 0:01:53.6]} 17...
Rxe8 {[%clk 0:01:50.7]} 18. Bb5 {[%clk 0:01:53.4]} 18... Re3 {[%clk 0:01:41.8]}
19. Bxc6 {[%clk 0:01:53.2]} 19... bxc6 {[%clk 0:01:42.7]} 20. Rd7 {[%clk
0:01:42.8]} 20... Rxf3 {[%clk 0:01:40.8]} 21. Rxc7 {[%clk 0:01:43]} 21... Rxf4
{[%clk 0:01:39.1]} 22. Rxa7 {[%clk 0:01:40.2]} 22... Rf1+ {[%clk 0:01:39.4]} 23.
Kd2 {[%clk 0:01:39.5]} 23... Rf2+ {[%clk 0:01:40.3]} 24. Kd3 {[%clk 0:01:39.4]}
24... Rxh2 {[%clk 0:01:41.2]} 25. a4 {[%clk 0:01:38.9]} 25... h5 {[%clk
0:01:33.4]} 26. a5 {[%clk 0:01:36.3]} 26... Rh1 {[%clk 0:01:31.7]} 27. Rc7
{[%clk 0:01:29.6]} 27... Ra1 {[%clk 0:01:30.6]} 28. Rxc6 {[%clk 0:01:22.4]}
28... Kg7 {[%clk 0:01:10.8]} 29. b4 {[%clk 0:01:19.5]} 29... h4 {[%clk 0:01:07]}
30. Rc4 {[%clk 0:01:19.2]} 30... h3 {[%clk 0:01:02.9]} 31. Rh4 {[%clk 0:01:19]}
31... Rh1 {[%clk 0:00:56.6]} 32. a6 {[%clk 0:01:16.6]} 32... h2 {[%clk
0:00:56.7]} 33. b5 {[%clk 0:01:01.5]} 33... Rb1 {[%clk 0:00:33.8]} 34. a7 {[%clk
0:00:55.2]} 34... Ra1 {[%clk 0:00:30.1]} 35. b6 {[%clk 0:00:54.8]} 35... Ra3+
{[%clk 0:00:30.6]} 36. Kd2 {[%clk 0:00:52]} 36... f5 {[%clk 0:00:30.6]} 37. b7
{[%clk 0:00:48.8]} 1-0

[Event "*** Titled Tuesday Blitz"]
[Site "Chess.com"]
[Date "2021.04.20"]
[Round "6"]
[White "TimofeevAr"]
[Black "pifion"]
[Result "1-0"]
[WhiteElo "2821"]
[BlackElo "2553"]
[TimeControl "180+1"]
[EndTime "11:04:47 PDT"]
[Termination "TimofeevAr won by resignation"]

1. c4 {[%clk 0:03:00.9]} 1... e6 {[%clk 0:02:59.4]} 2. b3 {[%clk 0:03:00]} 2...
Nf6 {[%clk 0:02:51.3]} 3. Bb2 {[%clk 0:03:00]} 3... b6 {[%clk 0:02:51.6]} 4. d3
{[%clk 0:02:58.6]} 4... Bb7 {[%clk 0:02:51.7]} 5. e4 {[%clk 0:02:58.7]} 5... d6
{[%clk 0:02:40]} 6. f4 {[%clk 0:02:50.6]} 6... c5 {[%clk 0:02:39.6]} 7. Nf3
{[%clk 0:02:50.2]} 7... Nc6 {[%clk 0:02:39.4]} 8. Be2 {[%clk 0:02:47.2]} 8...
Be7 {[%clk 0:02:35.6]} 9. O-O {[%clk 0:02:46.8]} 9... O-O {[%clk 0:02:34.7]} 10.
Nbd2 {[%clk 0:02:45.3]} 10... d5 {[%clk 0:02:32.2]} 11. Bxf6 {[%clk 0:02:09.4]}
11... Bxf6 {[%clk 0:02:31.3]} 12. e5 {[%clk 0:02:07]} 12... Be7 {[%clk
0:02:29.6]} 13. Kh1 {[%clk 0:02:06.1]} 13... f6 {[%clk 0:02:20.4]} 14. cxd5
{[%clk 0:02:04.6]} 14... Qxd5 {[%clk 0:02:19.5]} 15. d4 {[%clk 0:01:46.1]} 15...
Nxd4 {[%clk 0:02:14.3]} 16. Bc4 {[%clk 0:01:45.7]} 16... Qd7 {[%clk 0:02:14.1]}
17. Nxd4 {[%clk 0:01:44.9]} 17... cxd4 {[%clk 0:02:13.4]} 18. f5 {[%clk
0:01:40.1]} 18... Bd5 {[%clk 0:02:11.7]} 19. Qg4 {[%clk 0:01:35.3]} 19... Bxc4
{[%clk 0:01:51.9]} 20. Nxc4 {[%clk 0:01:34.4]} 20... exf5 {[%clk 0:01:50.4]} 21.
Rxf5 {[%clk 0:01:28.4]} 21... Rad8 {[%clk 0:01:37.5]} 22. Raf1 {[%clk
0:01:15.4]} 22... d3 {[%clk 0:01:32.5]} 23. h3 {[%clk 0:01:01.4]} 23... g6
{[%clk 0:01:22.1]} 24. exf6 {[%clk 0:01:00]} 24... Bc5 {[%clk 0:00:50.2]} 25.
f7+ {[%clk 0:00:50.6]} 25... Kg7 {[%clk 0:00:46]} 26. Qg5 {[%clk 0:00:37.1]}
26... Qe7 {[%clk 0:00:24.2]} 27. Rf6 {[%clk 0:00:36.6]} 27... d2 {[%clk
0:00:20.2]} 28. Nxd2 {[%clk 0:00:36.3]} 28... Be3 {[%clk 0:00:17.7]} 29. Rxg6+
{[%clk 0:00:36]} 1-0

[Event "*** Titled Tuesday Blitz"]
[Site "Chess.com"]
[Date "2021.04.20"]
[Round "6"]
[White "OriTaichman"]
[Black "quizden37"]
[Result "0-1"]
[WhiteElo "2548"]
[BlackElo "2804"]
[TimeControl "180+1"]
[EndTime "11:04:47 PDT"]
[Termination "quizden37 won by resignation"]

1. e4 {[%clk 0:02:54.7]} 1... c5 {[%clk 0:02:59.7]} 2. Nf3 {[%clk 0:02:54.2]}
2... e6 {[%clk 0:03:00.2]} 3. b3 {[%clk 0:02:54.1]} 3... d6 {[%clk 0:02:59.6]}
4. d4 {[%clk 0:02:53.7]} 4... cxd4 {[%clk 0:02:58.6]} 5. Nxd4 {[%clk 0:02:54.6]}
5... Nf6 {[%clk 0:02:59.5]} 6. Bd3 {[%clk 0:02:54.3]} 6... Be7 {[%clk
0:02:58.9]} 7. O-O {[%clk 0:02:53.8]} 7... O-O {[%clk 0:02:59.8]} 8. c4 {[%clk
0:02:54.1]} 8... Nbd7 {[%clk 0:02:59.9]} 9. Bb2 {[%clk 0:02:54.5]} 9... a6
{[%clk 0:03:00.7]} 10. Nd2 {[%clk 0:02:54.9]} 10... Qc7 {[%clk 0:03:01.3]} 11.
Qe2 {[%clk 0:02:55]} 11... b6 {[%clk 0:03:01.9]} 12. f4 {[%clk 0:02:55.2]} 12...
Bb7 {[%clk 0:03:02.3]} 13. Rae1 {[%clk 0:02:55.3]} 13... Rad8 {[%clk 0:02:49.9]}
14. Bb1 {[%clk 0:02:51]} 14... b5 {[%clk 0:02:41.9]} 15. cxb5 {[%clk 0:02:40.8]}
15... axb5 {[%clk 0:02:41.5]} 16. Nxb5 {[%clk 0:02:13.7]} 16... Qb6+ {[%clk
0:02:40.6]} 17. Bd4 {[%clk 0:02:12.2]} 17... Qa6 {[%clk 0:02:40.9]} 18. Bd3
{[%clk 0:02:01.2]} 18... Qa8 {[%clk 0:02:34.8]} 19. e5 {[%clk 0:01:45.9]} 19...
dxe5 {[%clk 0:02:29.5]} 20. fxe5 {[%clk 0:01:44.7]} 20... Nxe5 {[%clk
0:02:28.9]} 21. Qxe5 {[%clk 0:01:13]} 21... Bxg2 {[%clk 0:02:28.1]} 22. Rf2
{[%clk 0:01:02.5]} 22... Bc6 {[%clk 0:02:27]} 23. Ne4 {[%clk 0:00:50.3]} 23...
Rd5 {[%clk 0:02:18.6]} 24. Nxf6+ {[%clk 0:00:35.5]} 24... Bxf6 {[%clk
0:02:17.4]} 25. Bxh7+ {[%clk 0:00:10.6]} 25... Kxh7 {[%clk 0:02:15.3]} 26. Qe4+
{[%clk 0:00:10.3]} 26... Rf5 {[%clk 0:02:15.3]} 27. Qc2 {[%clk 0:00:03.1]} 27...
Kg8 {[%clk 0:01:23.6]} 28. Rxf5 {[%clk 0:00:03.2]} 28... exf5 {[%clk 0:01:23.9]}
29. Bxf6 {[%clk 0:00:03.6]} 29... Bxb5 {[%clk 0:01:24.4]} 30. Qxf5 {[%clk
0:00:04]} 30... Qa7+ {[%clk 0:01:20.4]} 31. Kg2 {[%clk 0:00:04.1]} 31... Bc6+
{[%clk 0:01:20.3]} 32. Kg3 {[%clk 0:00:02.9]} 32... Qxa2 {[%clk 0:01:13.9]} 33.
Qg5 {[%clk 0:00:02.7]} 33... Qg2+ {[%clk 0:01:13.3]} 34. Kh4 {[%clk 0:00:03.3]}
34... Qf2+ {[%clk 0:01:12.6]} 35. Kh3 {[%clk 0:00:02.8]} 35... Bd7+ {[%clk
0:01:12.1]} 0-1

[Event "*** Titled Tuesday Blitz"]
[Site "Chess.com"]
[Date "2021.04.20"]
[Round "6"]
[White "dpopadic"]
[Black "Sergey85Rodchenkov"]
[Result "0-1"]
[WhiteElo "2376"]
[BlackElo "2509"]
[TimeControl "180+1"]
[EndTime "11:04:47 PDT"]
[Termination "Sergey85Rodchenkov won on time"]

1. e4 {[%clk 0:03:00.9]} 1... c5 {[%clk 0:02:58.8]} 2. Nc3 {[%clk 0:03:00.8]}
2... e6 {[%clk 0:02:56.5]} 3. d3 {[%clk 0:03:00.1]} 3... d5 {[%clk 0:02:56.3]}
4. g4 {[%clk 0:03:00.1]} 4... Nc6 {[%clk 0:02:55.8]} 5. Bg2 {[%clk 0:03:00.2]}
5... d4 {[%clk 0:02:54.7]} 6. Nce2 {[%clk 0:02:59.6]} 6... h5 {[%clk 0:02:53.7]}
7. g5 {[%clk 0:02:59]} 7... g6 {[%clk 0:02:52.5]} 8. Nh3 {[%clk 0:02:56.5]} 8...
Bg7 {[%clk 0:02:50.7]} 9. O-O {[%clk 0:02:55.2]} 9... Nge7 {[%clk 0:02:50.6]}
10. f4 {[%clk 0:02:55]} 10... b5 {[%clk 0:02:49]} 11. Bd2 {[%clk 0:02:51.5]}
11... a5 {[%clk 0:02:47.8]} 12. Qe1 {[%clk 0:02:39.4]} 12... a4 {[%clk
0:02:47.4]} 13. a3 {[%clk 0:02:30.6]} 13... O-O {[%clk 0:02:46.5]} 14. Qh4
{[%clk 0:02:07.1]} 14... Ra7 {[%clk 0:02:40.5]} 15. Ng3 {[%clk 0:02:06.5]} 15...
c4 {[%clk 0:02:39]} 16. f5 {[%clk 0:01:58.7]} 16... exf5 {[%clk 0:02:13.1]} 17.
exf5 {[%clk 0:01:57.9]} 17... Bxf5 {[%clk 0:02:13.6]} 18. Nxf5 {[%clk
0:01:53.5]} 18... gxf5 {[%clk 0:02:13.8]} 19. Qxh5 {[%clk 0:01:51.2]} 19... Ne5
{[%clk 0:02:08.5]} 20. Bb4 {[%clk 0:01:35.2]} 20... N5g6 {[%clk 0:02:03.3]} 21.
Rae1 {[%clk 0:01:28.4]} 21... Re8 {[%clk 0:02:03.1]} 22. Qe2 {[%clk 0:01:21.7]}
22... Rc7 {[%clk 0:01:51.4]} 23. Nf4 {[%clk 0:01:08.3]} 23... Rc8 {[%clk
0:01:42.9]} 24. Nh5 {[%clk 0:00:51.4]} 24... Qb6 {[%clk 0:01:40.9]} 25. Nf6+
{[%clk 0:00:44.9]} 25... Bxf6 {[%clk 0:01:40.5]} 26. gxf6 {[%clk 0:00:44.9]}
26... Qxf6 {[%clk 0:01:41.2]} 27. Bh3 {[%clk 0:00:31.6]} 27... Kg7 {[%clk
0:01:37.8]} 28. Bg2 {[%clk 0:00:25.8]} 28... Qg5 {[%clk 0:01:29]} 29. Kh1 {[%clk
0:00:21.9]} 29... f4 {[%clk 0:01:17.4]} 30. Rg1 {[%clk 0:00:13.9]} 30... Qf6
{[%clk 0:01:12.4]} 31. Bf3 {[%clk 0:00:07.9]} 31... Nf5 {[%clk 0:01:10]} 32.
Qxe8 {[%clk 0:00:05.2]} 32... Rxe8 {[%clk 0:01:09.6]} 33. Rxe8 {[%clk
0:00:05.8]} 33... Ne3 {[%clk 0:01:09.8]} 34. Be4 {[%clk 0:00:03.2]} 34... Qh4
{[%clk 0:01:08]} 35. Bf8+ {[%clk 0:00:01.2]} 35... Kf6 {[%clk 0:01:07.5]} 0-1

[Event "*** Titled Tuesday Blitz"]
[Site "Chess.com"]
[Date "2021.04.20"]
[Round "6"]
[White "crescentmoon2411"]
[Black "OlegKrivonosov"]
[Result "1/2-1/2"]
[WhiteElo "2817"]
[BlackElo "2631"]
[TimeControl "180+1"]
[EndTime "11:04:49 PDT"]
[Termination "Game drawn by repetition"]

1. e4 {[%clk 0:03:00.9]} 1... e5 {[%clk 0:02:59.2]} 2. Nf3 {[%clk 0:03:00.7]}
2... Nc6 {[%clk 0:02:58.9]} 3. Bc4 {[%clk 0:03:00.5]} 3... Bc5 {[%clk
0:02:57.9]} 4. d3 {[%clk 0:03:00.5]} 4... d6 {[%clk 0:02:55.6]} 5. c3 {[%clk
0:03:00.2]} 5... Nf6 {[%clk 0:02:54.9]} 6. b4 {[%clk 0:02:58.8]} 6... Bb6 {[%clk
0:02:54.4]} 7. a4 {[%clk 0:02:58.9]} 7... a6 {[%clk 0:02:53]} 8. O-O {[%clk
0:02:58.1]} 8... h6 {[%clk 0:02:51.9]} 9. Na3 {[%clk 0:02:53.2]} 9... O-O {[%clk
0:02:50.5]} 10. Qb3 {[%clk 0:02:46]} 10... Qe7 {[%clk 0:02:38.2]} 11. Nc2 {[%clk
0:02:41.1]} 11... Be6 {[%clk 0:02:33.6]} 12. Be3 {[%clk 0:02:39.3]} 12... Bxc4
{[%clk 0:02:31]} 13. Qxc4 {[%clk 0:02:37.7]} 13... Bxe3 {[%clk 0:02:30.2]} 14.
Nxe3 {[%clk 0:02:38.6]} 14... Qe6 {[%clk 0:02:21.6]} 15. Nd5 {[%clk 0:02:34]}
15... Rac8 {[%clk 0:02:15]} 16. Nd2 {[%clk 0:02:11.2]} 16... Ne7 {[%clk
0:02:07.6]} 17. Nxf6+ {[%clk 0:01:21.2]} 17... Qxf6 {[%clk 0:02:06.5]} 18. d4
{[%clk 0:01:19.6]} 18... Ng6 {[%clk 0:02:00.7]} 19. g3 {[%clk 0:01:13.9]} 19...
c6 {[%clk 0:01:58.2]} 20. Qd3 {[%clk 0:01:12.8]} 20... d5 {[%clk 0:01:49]} 21.
f4 {[%clk 0:01:01.6]} 21... exf4 {[%clk 0:01:33.2]} 22. e5 {[%clk 0:00:57.6]}
22... Qg5 {[%clk 0:01:21.3]} 23. Rf2 {[%clk 0:00:35.5]} 23... fxg3 {[%clk
0:01:13.7]} 24. Qxg3 {[%clk 0:00:24.1]} 24... Qxg3+ {[%clk 0:01:11.1]} 25. hxg3
{[%clk 0:00:25]} 25... f6 {[%clk 0:01:07]} 26. exf6 {[%clk 0:00:24.1]} 26...
Rxf6 {[%clk 0:01:05.9]} 27. Rxf6 {[%clk 0:00:23.9]} 27... gxf6 {[%clk
0:01:05.4]} 28. a5 {[%clk 0:00:19.5]} 28... Nf8 {[%clk 0:00:59.5]} 29. Nb3
{[%clk 0:00:17.7]} 29... Ne6 {[%clk 0:00:59.2]} 30. Re1 {[%clk 0:00:17.3]} 30...
Kf7 {[%clk 0:00:58.7]} 31. Kf2 {[%clk 0:00:17.5]} 31... Rg8 {[%clk 0:00:56.7]}
32. Rh1 {[%clk 0:00:16.4]} 32... Kg6 {[%clk 0:00:50.8]} 33. Re1 {[%clk 0:00:15]}
33... Kf7 {[%clk 0:00:50.2]} 34. Rh1 {[%clk 0:00:14.6]} 34... Kg6 {[%clk
0:00:50.1]} 35. Re1 {[%clk 0:00:13.7]} 35... Kf7 {[%clk 0:00:49.7]} 1/2-1/2

[Event "*** Titled Tuesday Blitz"]
[Site "Chess.com"]
[Date "2021.04.20"]
[Round "6"]
[White "gumimis"]
[Black "hedgehog280"]
[Result "0-1"]
[WhiteElo "2322"]
[BlackElo "2560"]
[TimeControl "180+1"]
[EndTime "11:04:52 PDT"]
[Termination "hedgehog280 won on time"]

1. e4 {[%clk 0:03:00.9]} 1... c6 {[%clk 0:02:58.1]} 2. d4 {[%clk 0:02:53.6]}
2... d5 {[%clk 0:02:59]} 3. Nc3 {[%clk 0:02:43.2]} 3... dxe4 {[%clk 0:02:58.1]}
4. Nxe4 {[%clk 0:02:44.1]} 4... Nf6 {[%clk 0:02:58.5]} 5. Nxf6+ {[%clk
0:02:43.7]} 5... exf6 {[%clk 0:02:59.4]} 6. c3 {[%clk 0:02:44.3]} 6... Bd6
{[%clk 0:02:59.8]} 7. Bd3 {[%clk 0:02:44.8]} 7... O-O {[%clk 0:02:59.5]} 8. Qc2
{[%clk 0:02:45.4]} 8... Re8+ {[%clk 0:02:59.1]} 9. Ne2 {[%clk 0:02:46.1]} 9...
h5 {[%clk 0:02:59.7]} 10. O-O {[%clk 0:02:45.4]} 10... h4 {[%clk 0:02:59.4]} 11.
Nf4 {[%clk 0:02:44.3]} 11... Qc7 {[%clk 0:02:55.9]} 12. g3 {[%clk 0:02:40.8]}
12... Bg4 {[%clk 0:02:46]} 13. f3 {[%clk 0:02:25.8]} 13... Bc8 {[%clk
0:02:17.1]} 14. Bd2 {[%clk 0:02:21.7]} 14... Nd7 {[%clk 0:02:15.9]} 15. Rae1
{[%clk 0:02:21.7]} 15... Rxe1 {[%clk 0:02:16.1]} 16. Rxe1 {[%clk 0:02:22.6]}
16... Nf8 {[%clk 0:02:16.4]} 17. Re8 {[%clk 0:02:20.6]} 17... hxg3 {[%clk
0:02:11.1]} 18. hxg3 {[%clk 0:02:19.2]} 18... b6 {[%clk 0:02:11]} 19. Bh7+
{[%clk 0:01:29.7]} 19... Kh8 {[%clk 0:02:08.9]} 20. Be3 {[%clk 0:01:21.5]} 20...
Bb7 {[%clk 0:02:06.8]} 21. Rxf8+ {[%clk 0:01:18.2]} 21... Bxf8 {[%clk
0:01:40.8]} 22. Qh2 {[%clk 0:00:43.3]} 22... Bd6 {[%clk 0:01:13.1]} 23. Bg6+
{[%clk 0:00:25.8]} 23... Kg8 {[%clk 0:01:13]} 24. Qh7+ {[%clk 0:00:18.3]} 24...
Kf8 {[%clk 0:01:12.8]} 25. Qh8+ {[%clk 0:00:11.6]} 25... Ke7 {[%clk 0:01:13.2]}
26. Qxg7 {[%clk 0:00:12.5]} 26... Rf8 {[%clk 0:01:13.5]} 27. Nh5 {[%clk
0:00:08.5]} 27... Kd8 {[%clk 0:01:12.7]} 28. Nxf6 {[%clk 0:00:07.1]} 28... fxg6
{[%clk 0:01:04.5]} 29. Qxg6 {[%clk 0:00:02.7]} 29... Qf7 {[%clk 0:01:02.7]} 30.
Qf5 {[%clk 0:00:02]} 30... Bc8 {[%clk 0:00:55.2]} 31. Bg5 {[%clk 0:00:02.4]}
31... Bxf5 {[%clk 0:00:54.7]} 32. Nd5+ {[%clk 0:00:03.3]} 32... Kd7 {[%clk
0:00:54.4]} 0-1

[Event "*** Titled Tuesday Blitz"]
[Site "Chess.com"]
[Date "2021.04.20"]
[Round "6"]
[White "tusplingher"]
[Black "alejogarcia1999"]
[Result "0-1"]
[WhiteElo "2261"]
[BlackElo "2461"]
[TimeControl "180+1"]
[EndTime "11:04:53 PDT"]
[Termination "alejogarcia1999 won by checkmate"]

1. e4 {[%clk 0:03:00.9]} 1... c5 {[%clk 0:02:59.6]} 2. d4 {[%clk 0:03:00]} 2...
cxd4 {[%clk 0:02:59]} 3. c3 {[%clk 0:03:00.2]} 3... d5 {[%clk 0:02:59.3]} 4.
exd5 {[%clk 0:02:59.6]} 4... Qxd5 {[%clk 0:03:00.2]} 5. cxd4 {[%clk 0:02:59.8]}
5... e6 {[%clk 0:03:00.4]} 6. Nf3 {[%clk 0:02:59.7]} 6... Nf6 {[%clk 0:03:00.1]}
7. Nc3 {[%clk 0:02:58.1]} 7... Qd6 {[%clk 0:03:00.3]} 8. Bd3 {[%clk 0:02:56.2]}
8... Nc6 {[%clk 0:03:00]} 9. O-O {[%clk 0:02:55.6]} 9... Be7 {[%clk 0:03:00.2]}
10. Nb5 {[%clk 0:02:54.8]} 10... Qd8 {[%clk 0:02:58.7]} 11. Be3 {[%clk
0:02:39.4]} 11... O-O {[%clk 0:02:57]} 12. Rc1 {[%clk 0:02:35.1]} 12... a6
{[%clk 0:02:55.1]} 13. Nc3 {[%clk 0:02:33]} 13... Nb4 {[%clk 0:02:52.4]} 14. Bb1
{[%clk 0:02:25.5]} 14... b5 {[%clk 0:02:52.3]} 15. Ne5 {[%clk 0:02:21.6]} 15...
Bb7 {[%clk 0:02:50.2]} 16. Bg5 {[%clk 0:02:20.4]} 16... Nbd5 {[%clk 0:02:43.2]}
17. Qd3 {[%clk 0:02:14.3]} 17... g6 {[%clk 0:02:36.8]} 18. Bh6 {[%clk
0:02:12.7]} 18... Re8 {[%clk 0:02:35.9]} 19. Rfe1 {[%clk 0:02:03.6]} 19... Nxc3
{[%clk 0:02:27.2]} 20. bxc3 {[%clk 0:01:52.5]} 20... Qd5 {[%clk 0:02:25.3]} 21.
Qh3 {[%clk 0:01:39.3]} 21... Rac8 {[%clk 0:01:41.9]} 22. Bg5 {[%clk 0:01:36.4]}
22... Rc7 {[%clk 0:01:41.8]} 23. f3 {[%clk 0:00:44.2]} 23... Nh5 {[%clk
0:01:16]} 24. Be4 {[%clk 0:00:35]} 24... Qxa2 {[%clk 0:00:49.5]} 25. Rc2 {[%clk
0:00:17.2]} 25... Qb3 {[%clk 0:00:45.9]} 26. Bxb7 {[%clk 0:00:16.1]} 26... Qxc2
{[%clk 0:00:44.8]} 27. Nxf7 {[%clk 0:00:16.1]} 27... Bxg5 {[%clk 0:00:40.9]} 28.
Nxg5 {[%clk 0:00:15.1]} 28... Rxb7 {[%clk 0:00:38.5]} 29. Nxe6 {[%clk
0:00:14.1]} 29... Rbe7 {[%clk 0:00:38.1]} 30. d5 {[%clk 0:00:13.8]} 30... Qxc3
{[%clk 0:00:37.2]} 31. Qg4 {[%clk 0:00:13.1]} 31... Qxe1# {[%clk 0:00:36.9]} 0-1

[Event "*** Titled Tuesday Blitz"]
[Site "Chess.com"]
[Date "2021.04.20"]
[Round "6"]
[White "VladimirBugayev"]
[Black "JoachimMouhamad"]
[Result "0-1"]
[WhiteElo "2268"]
[BlackElo "2461"]
[TimeControl "180+1"]
[EndTime "11:04:54 PDT"]
[Termination "JoachimMouhamad won on time"]

1. e4 {[%clk 0:03:00.9]} 1... e5 {[%clk 0:02:55.8]} 2. Nf3 {[%clk 0:03:00.4]}
2... Nc6 {[%clk 0:02:56.2]} 3. d4 {[%clk 0:03:00.8]} 3... exd4 {[%clk
0:02:56.3]} 4. Nxd4 {[%clk 0:03:01.5]} 4... Nf6 {[%clk 0:02:56.9]} 5. Nxc6
{[%clk 0:03:00.7]} 5... bxc6 {[%clk 0:02:55.5]} 6. e5 {[%clk 0:03:01.3]} 6...
Qe7 {[%clk 0:02:53.1]} 7. Qe2 {[%clk 0:03:01.7]} 7... Nd5 {[%clk 0:02:52.4]} 8.
h4 {[%clk 0:03:02.3]} 8... f6 {[%clk 0:02:51]} 9. c4 {[%clk 0:03:01.4]} 9... Nb6
{[%clk 0:02:49.3]} 10. exf6 {[%clk 0:02:59.2]} 10... gxf6 {[%clk 0:02:27.8]} 11.
b3 {[%clk 0:02:48.3]} 11... d5 {[%clk 0:02:16.1]} 12. Be3 {[%clk 0:02:13.8]}
12... Bf5 {[%clk 0:02:03.1]} 13. Nd2 {[%clk 0:02:04.3]} 13... O-O-O {[%clk
0:01:51.1]} 14. c5 {[%clk 0:01:46.4]} 14... Nd7 {[%clk 0:01:26.2]} 15. Qa6+
{[%clk 0:01:45.3]} 15... Kb8 {[%clk 0:01:26.4]} 16. Qxc6 {[%clk 0:01:16.6]}
16... d4 {[%clk 0:01:21.9]} 17. Qb5+ {[%clk 0:00:42.9]} 17... Nb6 {[%clk
0:01:17]} 18. cxb6 {[%clk 0:00:33]} 18... axb6 {[%clk 0:01:16.8]} 19. Qxf5
{[%clk 0:00:26.8]} 19... dxe3 {[%clk 0:01:16.8]} 20. Ne4 {[%clk 0:00:16.6]}
20... Qb4+ {[%clk 0:01:06.1]} 21. Ke2 {[%clk 0:00:16.6]} 21... Bh6 {[%clk
0:01:00]} 22. Kf3 {[%clk 0:00:13.5]} 22... Rhe8 {[%clk 0:00:53.7]} 23. Bc4
{[%clk 0:00:12.6]} 23... Rd4 {[%clk 0:00:49.9]} 24. Rhd1 {[%clk 0:00:02.5]}
24... Rdxe4 {[%clk 0:00:39]} 25. Rd8+ {[%clk 0:00:01.5]} 25... Rxd8 {[%clk
0:00:39.6]} 26. Qxe4 {[%clk 0:00:02.1]} 26... exf2 {[%clk 0:00:32.3]} 0-1

[Event "*** Titled Tuesday Blitz"]
[Site "Chess.com"]
[Date "2021.04.20"]
[Round "6"]
[White "Didici"]
[Black "davigator"]
[Result "1-0"]
[WhiteElo "2601"]
[BlackElo "2427"]
[TimeControl "180+1"]
[EndTime "11:04:57 PDT"]
[Termination "Didici won by resignation"]

1. e4 {[%clk 0:03:00.4]} 1... c5 {[%clk 0:02:59.1]} 2. Be2 {[%clk 0:02:58.3]}
2... Nc6 {[%clk 0:02:57.9]} 3. d3 {[%clk 0:02:57.5]} 3... g6 {[%clk 0:02:57.2]}
4. f4 {[%clk 0:02:56.3]} 4... Bg7 {[%clk 0:02:57]} 5. Nf3 {[%clk 0:02:56.9]}
5... d6 {[%clk 0:02:57.1]} 6. O-O {[%clk 0:02:56.4]} 6... e6 {[%clk 0:02:57.3]}
7. c3 {[%clk 0:02:53.4]} 7... Nge7 {[%clk 0:02:56.4]} 8. Be3 {[%clk 0:02:53]}
8... O-O {[%clk 0:02:54.5]} 9. Nbd2 {[%clk 0:02:51.3]} 9... b6 {[%clk
0:02:52.7]} 10. a3 {[%clk 0:02:45.3]} 10... Rb8 {[%clk 0:02:49.4]} 11. Rc1
{[%clk 0:02:44.9]} 11... d5 {[%clk 0:02:43.6]} 12. e5 {[%clk 0:02:42.8]} 12...
d4 {[%clk 0:02:43.4]} 13. cxd4 {[%clk 0:02:41.6]} 13... Nxd4 {[%clk 0:02:42.4]}
14. Nxd4 {[%clk 0:02:39.3]} 14... cxd4 {[%clk 0:02:42.6]} 15. Bf2 {[%clk
0:02:39.6]} 15... h5 {[%clk 0:02:38.6]} 16. Qa4 {[%clk 0:02:25.2]} 16... Nf5
{[%clk 0:02:37.7]} 17. Qxa7 {[%clk 0:02:19.5]} 17... Bb7 {[%clk 0:02:31]} 18.
Bf3 {[%clk 0:02:17.9]} 18... Bd5 {[%clk 0:02:26.5]} 19. Qc7 {[%clk 0:02:13.4]}
19... b5 {[%clk 0:02:12.9]} 20. Qxd8 {[%clk 0:02:10.1]} 20... Rfxd8 {[%clk
0:02:12.7]} 21. Bxd5 {[%clk 0:02:06.1]} 21... exd5 {[%clk 0:02:12.7]} 22. Nb3
{[%clk 0:02:03.9]} 22... Ne3 {[%clk 0:02:12.7]} 23. Bxe3 {[%clk 0:02:03]} 23...
dxe3 {[%clk 0:02:12.8]} 24. d4 {[%clk 0:02:03.6]} 24... b4 {[%clk 0:02:10.6]}
25. a4 {[%clk 0:02:01.9]} 25... Ra8 {[%clk 0:02:08.9]} 26. a5 {[%clk 0:01:58.9]}
26... f6 {[%clk 0:02:04.8]} 27. Rc7 {[%clk 0:01:50.9]} 27... fxe5 {[%clk
0:02:04.3]} 28. fxe5 {[%clk 0:01:43.7]} 28... Rf8 {[%clk 0:02:03.3]} 29. Re1
{[%clk 0:01:42]} 29... Bh6 {[%clk 0:02:02.8]} 30. Rc2 {[%clk 0:01:28.4]} 30...
Rfc8 {[%clk 0:01:57.7]} 31. Rec1 {[%clk 0:01:24.6]} 31... Rxc2 {[%clk 0:01:41]}
32. Rxc2 {[%clk 0:01:25.5]} 32... Kf7 {[%clk 0:01:40.9]} 33. Kf1 {[%clk
0:01:21.3]} 33... Ke6 {[%clk 0:01:40.7]} 34. Ke2 {[%clk 0:01:20.5]} 34... Rf8
{[%clk 0:01:40.1]} 35. Kd3 {[%clk 0:01:20.1]} 35... Rf1 {[%clk 0:01:38.5]} 36.
Nc5+ {[%clk 0:01:18.3]} 36... Ke7 {[%clk 0:01:36.5]} 37. Nb3 {[%clk 0:01:14.5]}
37... Kd7 {[%clk 0:01:25.4]} 38. a6 {[%clk 0:01:13.6]} 38... Rf8 {[%clk
0:01:25.1]} 39. Rc5 {[%clk 0:01:08.8]} 39... Ke6 {[%clk 0:01:23.8]} 40. a7
{[%clk 0:01:06.6]} 40... Ra8 {[%clk 0:01:23.1]} 41. Ra5 {[%clk 0:01:05.9]} 41...
h4 {[%clk 0:01:18.3]} 42. Nc5+ {[%clk 0:01:04.3]} 42... Ke7 {[%clk 0:01:18.4]}
43. Na4 {[%clk 0:01:01.4]} 43... Bf4 {[%clk 0:01:02.4]} 44. Nb6 {[%clk
0:00:58.8]} 44... Rg8 {[%clk 0:00:56.5]} 45. a8=Q {[%clk 0:00:57.8]} 45... Rxa8
{[%clk 0:00:55.4]} 46. Rxa8 {[%clk 0:00:58.7]} 46... Bxh2 {[%clk 0:00:55.1]} 47.
Kxe3 {[%clk 0:00:56.1]} 47... g5 {[%clk 0:00:52.2]} 48. Nxd5+ {[%clk 0:00:53.6]}
48... Ke6 {[%clk 0:00:53.1]} 49. Ke4 {[%clk 0:00:53.3]} 49... g4 {[%clk
0:00:52.3]} 50. Rg8 {[%clk 0:00:51]} 50... g3 {[%clk 0:00:48.9]} 51. Nf4+ {[%clk
0:00:49]} 51... Kf7 {[%clk 0:00:49.2]} 52. Rh8 {[%clk 0:00:46.3]} 1-0